fUSD/lending_fUSD_20241223
["ID","MTS","AMOUNT","RATE_DAILY","PERIOD"]
[346462877,1734985851024,-4446.01,0.00013698,2]
[346462878,1734985851033,-705.165856,0.00013698,2]
[346462879,1734985851043,-1889.33,0.00013698,2]
[346462880,1734985851052,-545.8554983,0.00013698,2]
[346462881,1734985851062,-500.0,0.00013698,2]
[346462882,1734985851071,-1288.53,0.00013698,2]
[346462883,1734985851080,-500.0,0.00013698,2]
[346462884,1734985851091,-500.0,0.00013698,2]
[346462885,1734985851100,-1000.67,0.00013698,2]
[346462886,1734985851109,-3407.21,0.00013698,2]
[346462887,1734985851119,-2691.94,0.00013698,2]
[346462888,1734985851128,-500.0,0.00013698,2]
[346462889,1734985851137,-500.0,0.00013698,2]
[346462890,1734985851146,-1280.13,0.00013698,2]
[346462891,1734985851156,-12046.36,0.00013698,2]
[346462892,1734985851165,-1334.12,0.00013698,2]
[346462893,1734985851174,-10250.84,0.00013698,2]
[346462894,1734985851184,-500.0,0.00013698,2]
[346462895,1734985851193,-500.0,0.00013698,2]
[346462896,1734985851203,-1478.9,0.00013698,2]
[346462897,1734985851212,-25569.1,0.00013698,2]
[346462898,1734985851222,-500.0,0.00013698,2]
[346462899,1734985851232,-3957.97,0.00013698,2]
[346462900,1734985851241,-500.0,0.00013698,2]
[346462901,1734985851251,-500.0,0.00013698,2]
[346462902,1734985851261,-500.0,0.00013698,2]
[346462903,1734985851271,-500.0,0.00013698,2]
[346462904,1734985851281,-500.0,0.00013698,2]
[346462905,1734985851290,-657.62,0.00013698,2]
[346462906,1734985851300,-500.0,0.00013698,2]
[346462907,1734985851309,-586.91,0.00013698,2]
[346462908,1734985851318,-3107.9,0.00013698,2]
[346462909,1734985851328,-3696.53,0.00013698,2]
[346462910,1734985851338,-1054.89,0.00013698,2]
[346462911,1734985851347,-638.65,0.00013698,2]
[346462912,1734985851357,-500.0,0.00013698,2]
[346462913,1734985851366,-1067.03,0.00013698,2]
[346462914,1734985851376,-500.0,0.00013698,2]
[346462915,1734985851385,-500.0,0.00013698,2]
[346462916,1734985851395,-500.0,0.00013698,2]
[346462917,1734985851406,-937.27,0.00013698,2]
[346462918,1734985851416,-670.92,0.00013698,2]
[346462919,1734985851425,-500.0,0.00013698,2]
[346462920,1734985851435,-500.0,0.00013698,2]
[346462921,1734985851444,-10329.14,0.00013698,2]
[346462922,1734985851454,-642.93,0.00013698,2]
[346462923,1734985851463,-500.0,0.00013698,2]
[346462924,1734985851473,-500.0,0.00013698,2]
[346462925,1734985851482,-500.0,0.00013698,2]
[346462926,1734985851492,-1416.27,0.00013698,2]
[346462927,1734985851501,-1866.48,0.00013698,2]
[346462928,1734985851510,-500.0,0.00013698,2]
[346462929,1734985851520,-1448.92,0.00013698,2]
[346462930,1734985851530,-500.0,0.00013698,2]
[346462931,1734985851539,-500.0,0.00013698,2]
[346462932,1734985851548,-500.0,0.00013698,2]
[346462933,1734985851558,-5377.1,0.00013699,2]
[346462934,1734985851567,-150.39,0.00013699,2]
[346462935,1734985851577,-200.0,0.00013699,2]
[346462936,1734985851587,-207.94,0.000137,2]
[346462937,1734985851596,-207.94,0.000137,2]
[346462938,1734985851605,-207.94,0.000137,2]
[346462939,1734985851615,-207.94,0.000137,2]
[346462940,1734985851625,-207.94,0.000137,2]
[346462941,1734985851634,-500.62606987,0.00013719,2]
[346462942,1734985851644,-500.0,0.00013719,2]
[346462943,1734985851654,-500.0,0.00013719,2]
[346462944,1734985851665,-22794.51131573,0.0001374,2]
[346462945,1734985851675,-48794.21285307,0.00013781,2]
[346462946,1734985851684,-200.0,0.00013835,2]
[346462947,1734985851694,-200.0,0.00013835,2]
[346462948,1734985851703,-22794.51131573,0.00013853,2]
[346462949,1734985851713,-500.0,0.00013863,2]
[346462950,1734985851722,-48794.21285307,0.00013872,2]
[346462951,1734985851732,-212.63469723,0.00013962,2]
[346462952,1734985851741,-48794.21285307,0.00013963,2]
[346462953,1734985851751,-22794.51131573,0.00013967,2]
[346462954,1734985851760,-500.0,0.00013971,2]
[346462955,1734985851770,-567.79,0.00013971,2]
[346462956,1734985851780,-567.79,0.00013971,2]
[346462957,1734985851790,-567.79,0.00013971,2]
[346462958,1734985851799,-567.79,0.00013971,2]
[346462959,1734985851809,-567.79,0.00013971,2]
[346462960,1734985851820,-500.0,0.00013971,2]
[346462961,1734985851830,-500.0,0.00013971,2]
[346462962,1734985851840,-500.0,0.00013971,2]
[346462963,1734985851850,-500.0,0.00013971,2]
[346462964,1734985851860,-500.0,0.00013971,2]
[346462965,1734985851869,-500.0,0.00013971,2]
[346462966,1734985851879,-500.0,0.00013971,2]
[346462967,1734985851889,-500.0,0.00013972,2]
[346462968,1734985851899,-501.08371111,0.00013972,2]
[346462969,1734985851912,-501.56870435,0.00013972,2]
[346462970,1734985851923,-501.70700247,0.00013972,2]
[346462971,1734985851934,-507.52117299,0.00013972,2]
[346462972,1734985851944,-500.0,0.00013972,2]
[346462973,1734985851954,-510.17164348,0.00013972,2]
[346462974,1734985851965,-500.0,0.00013972,2]
[346462975,1734985851975,-501.20378764,0.00013972,2]
[346462976,1734985851986,-492.64668902,0.00013972,2]
[346462977,1734985851996,-504.82282155,0.00013972,2]
[346462978,1734985852007,-500.72184488,0.00013972,2]
[346462979,1734985852017,-500.0,0.00013972,2]
[346462980,1734985852027,-500.0,0.00013972,2]
[346462981,1734985852037,-968.93,0.00013972,2]
[346462982,1734985852048,-597.24,0.00013972,2]
[346462983,1734985852058,-500.0,0.00013972,2]
[346462984,1734985852068,-976.32,0.00013972,2]
[346462985,1734985852078,-500.0,0.00013972,2]
[346462986,1734985852088,-943.28,0.00013972,2]
[346462987,1734985852098,-500.0,0.00013972,2]
[346462988,1734985852109,-500.0,0.00013972,2]
[346462989,1734985852118,-500.0,0.00013972,2]
[346462990,1734985852128,-500.0,0.00013972,2]
[346462991,1734985852138,-500.0,0.00013972,2]
[346462992,1734985852148,-579.19,0.00013972,2]
[346462993,1734985852159,-979.27,0.00013972,2]
[346462994,1734985852169,-700.0,0.00013972,2]
[346462995,1734985852179,-1131.56,0.00013972,2]
[346462996,1734985852190,-500.0,0.00013972,2]
[346462997,1734985852200,-1266.94,0.00013972,2]
[346462998,1734985852211,-1092.24,0.00013972,2]
[346462999,1734985852220,-500.0,0.00013972,2]
[346463000,1734985852230,-956.31,0.00013972,2]
[346463001,1734985852240,-940.19,0.00013972,2]
[346463002,1734985852250,-500.0,0.00013972,2]
[346463003,1734985852260,-500.0,0.00013972,2]
[346463004,1734985852270,-1115.52,0.00013972,2]
[346463005,1734985852280,-500.0,0.00013972,2]
[346463006,1734985852291,-500.0,0.00013972,2]
[346463007,1734985852301,-1326.51,0.00013972,2]
[346463008,1734985852311,-501.61706296,0.00013972,2]
[346463009,1734985852321,-781.32,0.00013972,2]
[346463010,1734985852331,-650.14,0.00013972,2]
[346463011,1734985852341,-500.0,0.00013972,2]
[346463012,1734985852351,-670.82,0.00013972,2]
[346463013,1734985852361,-500.0,0.00013972,2]
[346463014,1734985852371,-500.0,0.00013972,2]
[346463015,1734985852382,-221.28887372,0.00013972,2]
[346463016,1734985852392,-500.0,0.00013972,2]
[346463017,1734985852403,-500.0,0.00013972,2]
[346463018,1734985852415,-500.0,0.00013972,2]
[346463019,1734985852425,-500.0,0.00013972,2]
[346463020,1734985852435,-500.0,0.00013972,2]
[346463021,1734985852445,-500.0,0.00013972,2]
[346463022,1734985852455,-750.23,0.00013972,2]
[346463023,1734985852465,-500.0,0.00013972,2]
[346463024,1734985852475,-500.0,0.00013972,2]
[346463025,1734985852486,-500.0,0.00013972,2]
[346463026,1734985852496,-500.0,0.00013972,2]
[346463027,1734985852506,-500.0,0.00013972,2]
[346463028,1734985852516,-500.0,0.00013972,2]
[346463029,1734985852526,-1278.57,0.00013972,2]
[346463030,1734985852537,-500.0,0.00013972,2]
[346463031,1734985852547,-500.0,0.00013972,2]
[346463032,1734985852557,-900.98,0.00013972,2]
[346463033,1734985852567,-500.0,0.00013972,2]
[346463034,1734985852577,-500.0,0.00013972,2]
[346463035,1734985852587,-760.62,0.00013972,2]
[346463036,1734985852598,-500.0,0.00013972,2]
[346463037,1734985852608,-500.0,0.00013972,2]
[346463038,1734985852618,-500.0,0.00013972,2]
[346463039,1734985852627,-500.0,0.00013972,2]
[346463040,1734985852638,-500.0,0.00013972,2]
[346463041,1734985852648,-500.0,0.00013972,2]
[346463042,1734985852660,-500.0,0.00013972,2]
[346463043,1734985852671,-500.0,0.00013972,2]
[346463044,1734985852681,-500.0,0.00013972,2]
[346463045,1734985852692,-868.81,0.00013972,2]
[346463046,1734985852702,-556.61,0.00013972,2]
[346463047,1734985852712,-1157.22,0.00013972,2]
[346463048,1734985852723,-500.0,0.00013972,2]
[346463049,1734985852733,-500.0,0.00013972,2]
[346463050,1734985852743,-500.0,0.00013972,2]
[346463051,1734985852753,-500.0,0.00013972,2]
[346463052,1734985852763,-500.0,0.00013972,2]
[346463053,1734985852773,-500.0,0.00013972,2]
[346463054,1734985852783,-509.18202464,0.00013972,2]
[346463055,1734985852793,-500.0,0.00013972,2]
[346463056,1734985852803,-500.0,0.00013972,2]
[346463057,1734985852814,-983.96,0.00013972,2]
[346463058,1734985852824,-500.0,0.00013972,2]
[346463059,1734985852834,-661.94,0.00013972,2]
[346463060,1734985852844,-500.0,0.00013972,2]
[346463061,1734985852854,-500.0,0.00013972,2]
[346463062,1734985852864,-766.92,0.00013972,2]
[346463063,1734985852874,-500.0,0.00013972,2]
[346463064,1734985852884,-500.0,0.00013972,2]
[346463065,1734985852894,-500.0,0.00013972,2]
[346463066,1734985852904,-500.0,0.00013972,2]
[346463067,1734985852918,-666.95,0.00013972,2]
[346463068,1734985852931,-1136.67,0.00013972,2]
[346463069,1734985852941,-500.0,0.00013972,2]
[346463070,1734985852951,-500.0,0.00013972,2]
[346463071,1734985852961,-500.0,0.00013972,2]
[346463072,1734985852972,-575.03,0.00013972,2]
[346463073,1734985852981,-646.94,0.00013972,2]
[346463074,1734985852992,-1150.34,0.00013972,2]
[346463075,1734985853004,-500.0,0.00013972,2]
[346463076,1734985853014,-601.39,0.00013972,2]
[346463077,1734985853024,-569.88,0.00013972,2]
[346463078,1734985853034,-641.41,0.00013972,2]
[346463079,1734985853044,-1055.39,0.00013972,2]
[346463080,1734985853054,-622.33,0.00013972,2]
[346463081,1734985853063,-500.0,0.00013972,2]
[346463082,1734985853073,-500.0,0.00013972,2]
[346463083,1734985853083,-601.77,0.00013972,2]
[346463084,1734985853093,-1204.84,0.00013972,2]
[346463085,1734985853103,-634.59,0.00013972,2]
[346463086,1734985853114,-500.0,0.00013972,2]
[346463087,1734985853124,-500.0,0.00013972,2]
[346463088,1734985853134,-851.5,0.00013972,2]
[346463089,1734985853144,-500.0,0.00013972,2]
[346463090,1734985853154,-500.0,0.00013972,2]
[346463091,1734985853167,-500.0,0.00013972,2]
[346463092,1734985853177,-500.0,0.00013972,2]
[346463093,1734985853187,-750.99,0.00013972,2]
[346463094,1734985853197,-996.71,0.00013972,2]
[346463095,1734985853207,-500.0,0.00013972,2]
[346463096,1734985853217,-503.58819522,0.00013972,2]
[346463097,1734985853227,-500.0,0.00013972,2]
[346463098,1734985853236,-500.0,0.00013972,2]
[346463099,1734985853247,-500.0,0.00013972,2]
[346463100,1734985853257,-529.96,0.00013972,2]
[346463101,1734985853268,-500.0,0.00013972,2]
[346463102,1734985853279,-500.0,0.00013972,2]
[346463103,1734985853290,-698.5,0.00013972,2]
[346463104,1734985853301,-500.0,0.00013972,2]
[346463105,1734985853312,-500.0,0.00013972,2]
[346463106,1734985853324,-500.0,0.00013972,2]
[346463107,1734985853335,-500.0,0.00013972,2]
[346463108,1734985853346,-500.0,0.00013972,2]
[346463109,1734985853357,-500.0,0.00013972,2]
[346463110,1734985853368,-500.0,0.00013972,2]
[346463111,1734985853378,-500.0,0.00013972,2]
[346463112,1734985853389,-500.0,0.00013972,2]
[346463113,1734985853399,-295.03047548,0.00013972,2]
[346463114,1734985853414,-500.0,0.00013972,2]
[346463115,1734985853425,-500.0,0.00013972,2]
[346463116,1734985853436,-507.06358408,0.00013972,2]
[346463117,1734985853447,-500.0,0.00013972,2]
[346463118,1734985853457,-500.0,0.00013972,2]
[346463119,1734985853467,-598.76,0.00013972,2]
[346463120,1734985853477,-1521.39,0.00013972,2]
[346463121,1734985853487,-520.01268288,0.00013972,2]
[346463122,1734985853497,-500.0,0.00013972,2]
[346463123,1734985853507,-500.0,0.00013972,2]
[346463124,1734985853518,-500.0,0.00013972,2]
[346463125,1734985853529,-657.38,0.00013972,2]
[346463126,1734985853539,-241.25152209,0.00013972,2]
[346463127,1734985853549,-2304.23,0.00013972,2]
[346463128,1734985853559,-500.0,0.00013972,2]
[346463129,1734985853569,-500.0,0.00013972,2]
[346463130,1734985853579,-500.0,0.00013972,2]
[346463131,1734985853589,-500.0,0.00013972,2]
[346463132,1734985853599,-501.12,0.00013972,2]
[346463133,1734985853609,-1075.94,0.00013972,2]
[346463134,1734985853619,-500.0,0.00013972,2]
[346463135,1734985853629,-500.0,0.00013972,2]
[346463136,1734985853639,-500.0,0.00013972,2]
[346463137,1734985853649,-500.0,0.00013972,2]
[346463138,1734985853663,-500.0,0.00013972,2]
[346463139,1734985853673,-500.0,0.00013972,2]
[346463140,1734985853683,-500.0,0.00013972,2]
[346463141,1734985853693,-1362.94,0.00013972,2]
[346463142,1734985853703,-500.0,0.00013972,2]
[346463143,1734985853714,-500.0,0.00013972,2]
[346463144,1734985853724,-503.39304087,0.00013972,2]
[346463145,1734985853734,-500.0,0.00013972,2]
[346463146,1734985853745,-500.0,0.00013972,2]
[346463147,1734985853755,-1213.72,0.00013972,2]
[346463148,1734985853765,-500.0,0.00013972,2]
[346463149,1734985853774,-500.0,0.00013972,2]
[346463150,1734985853784,-500.0,0.00013972,2]
[346463151,1734985853795,-633.15,0.00013972,2]
[346463152,1734985853806,-500.0,0.00013972,2]
[346463153,1734985853816,-1002.19,0.00013972,2]
[346463154,1734985853826,-972.57,0.00013972,2]
[346463155,1734985853836,-500.0,0.00013972,2]
[346463156,1734985853846,-500.0,0.00013972,2]
[346463157,1734985853856,-500.0,0.00013972,2]
[346463158,1734985853867,-500.0,0.00013972,2]
[346463159,1734985853877,-500.0,0.00013972,2]
[346463160,1734985853887,-500.0,0.00013972,2]
[346463161,1734985853897,-500.0,0.00013972,2]
[346463162,1734985853910,-500.0,0.00013972,2]
[346463163,1734985853921,-368.9574176,0.00013972,2]
[346463164,1734985853934,-501.76005484,0.00013972,2]
[346463165,1734985853944,-500.0,0.00013972,2]
[346463166,1734985853955,-500.0,0.00013972,2]
[346463167,1734985853965,-1403.19,0.00013972,2]
[346463168,1734985853975,-500.0,0.00013972,2]
[346463169,1734985853984,-500.0,0.00013972,2]
[346463170,1734985853994,-500.0,0.00013972,2]
[346463171,1734985854007,-500.0,0.00013972,2]
[346463172,1734985854018,-500.0,0.00013972,2]
[346463173,1734985854029,-500.0,0.00013972,2]
[346463174,1734985854039,-783.33,0.00013972,2]
[346463175,1734985854440,-500.0,0.00013972,2]
[346463176,1734985854456,-673.41,0.00013972,2]
[346463177,1734985854465,-733.21,0.00013972,2]
[346463178,1734985854473,-500.0,0.00013972,2]
[346463179,1734985854482,-500.0,0.00013972,2]
[346463180,1734985854491,-500.0,0.00013972,2]
[346463181,1734985854500,-500.0,0.00013972,2]
[346463182,1734985854509,-500.0,0.00013972,2]
[346463183,1734985854518,-500.0,0.00013972,2]
[346463184,1734985854527,-500.0,0.00013972,2]
[346463185,1734985854537,-909.55,0.00013972,2]
[346463186,1734985854547,-500.0,0.00013972,2]
[346463187,1734985854557,-969.84,0.00013972,2]
[346463188,1734985854567,-608.24,0.00013972,2]
[346463189,1734985854576,-549.36,0.00013972,2]
[346463190,1734985854586,-500.0,0.00013972,2]
[346463191,1734985854597,-505.72503023,0.00013972,2]
[346463192,1734985854607,-1182.74,0.00013972,2]
[346463193,1734985854616,-909.48,0.00013972,2]
[346463194,1734985854626,-500.0,0.00013972,2]
[346463195,1734985854636,-500.0,0.00013972,2]
[346463196,1734985854646,-1492.35,0.00013972,2]
[346463197,1734985854658,-500.0,0.00013972,2]
[346463198,1734985854668,-672.1,0.00013972,2]
[346463199,1734985854678,-500.0,0.00013972,2]
[346463200,1734985854688,-500.0,0.00013972,2]
[346463201,1734985854698,-2159.79,0.00013972,2]
[346463202,1734985854707,-303.92024624,0.00013972,2]
[346463203,1734985854717,-500.0,0.00013972,2]
[346463204,1734985854728,-500.0,0.00013972,2]
[346463205,1734985854737,-500.0,0.00013972,2]
[346463206,1734985854748,-500.0,0.00013972,2]
[346463207,1734985854758,-1079.86,0.00013972,2]
[346463208,1734985854768,-500.0,0.00013972,2]
[346463209,1734985854778,-916.08,0.00013972,2]
[346463210,1734985854788,-500.0,0.00013972,2]
[346463211,1734985854798,-500.0,0.00013972,2]
[346463212,1734985854807,-1665.74,0.00013972,2]
[346463213,1734985854817,-500.0,0.00013972,2]
[346463214,1734985854827,-564.98,0.00013972,2]
[346463215,1734985854837,-338.18427263,0.00013972,2]
[346463216,1734985854846,-500.0,0.00013972,2]
[346463217,1734985854856,-500.0,0.00013972,2]
[346463218,1734985854865,-500.0,0.00013972,2]
[346463219,1734985854875,-500.0,0.00013972,2]
[346463220,1734985854884,-510.61519213,0.00013972,2]
[346463221,1734985854893,-965.88,0.00013972,2]
[346463222,1734985854903,-2479.73,0.00013972,2]
[346463223,1734985854917,-500.0,0.00013972,2]
[346463224,1734985854927,-500.0,0.00013972,2]
[346463225,1734985854936,-588.75,0.00013972,2]
[346463226,1734985854946,-500.0,0.00013972,2]
[346463227,1734985854960,-500.0,0.00013972,2]
[346463228,1734985854971,-500.0,0.00013972,2]
[346463229,1734985854982,-1185.61,0.00013972,2]
[346463230,1734985854995,-500.0,0.00013972,2]
[346463231,1734985855005,-500.0,0.00013972,2]
[346463232,1734985855015,-500.0,0.00013972,2]
[346463233,1734985855025,-751.19,0.00013972,2]
[346463234,1734985855036,-500.0,0.00013972,2]
[346463235,1734985855045,-500.0,0.00013972,2]
[346463236,1734985855055,-500.0,0.00013972,2]
[346463237,1734985855063,-500.0,0.00013972,2]
[346463238,1734985855072,-500.0,0.00013972,2]
[346463239,1734985855082,-1052.4,0.00013972,2]
[346463240,1734985855092,-500.0,0.00013972,2]
[346463241,1734985855102,-2369.23,0.00013972,2]
[346463242,1734985855112,-2661.43,0.00013972,2]
[346463243,1734985855121,-500.0,0.00013972,2]
[346463244,1734985855131,-500.0,0.00013972,2]
[346463245,1734985855141,-500.0,0.00013972,2]
[346463246,1734985855150,-500.0,0.00013972,2]
[346463247,1734985855162,-500.0,0.00013972,2]
[346463248,1734985855171,-1795.99,0.00013972,2]
[346463249,1734985855181,-1448.03,0.00013972,2]
[346463250,1734985855190,-1186.31,0.00013972,2]
[346463251,1734985855199,-619.48,0.00013972,2]
[346463252,1734985855209,-515.85,0.00013972,2]
[346463253,1734985855218,-500.0,0.00013972,2]
[346463254,1734985855227,-500.0,0.00013972,2]
[346463255,1734985855237,-2531.7,0.00013972,2]
[346463256,1734985855246,-500.0,0.00013972,2]
[346463257,1734985855256,-500.0,0.00013972,2]
[346463258,1734985855266,-500.0,0.00013972,2]
[346463259,1734985855275,-1038.88,0.00013972,2]
[346463260,1734985855284,-500.0,0.00013972,2]
[346463261,1734985855294,-926.36,0.00013972,2]
[346463262,1734985855303,-2389.36,0.00013972,2]
[346463263,1734985855314,-1711.03,0.00013972,2]
[346463264,1734985855323,-500.0,0.00013972,2]
[346463265,1734985855334,-438.82462211,0.00013972,2]
[346463266,1734985855343,-909.0,0.00013972,2]
[346463267,1734985855353,-1570.43,0.00013972,2]
[346463268,1734985855363,-500.0,0.00013972,2]
[346463269,1734985855372,-500.0,0.00013972,2]
[346463270,1734985855382,-500.0,0.00013972,2]
[346463271,1734985855391,-739.02,0.00013972,2]
[346463272,1734985855401,-500.0,0.00013972,2]
[346463273,1734985855413,-500.0,0.00013972,2]
[346463274,1734985855423,-500.0,0.00013972,2]
[346463275,1734985855433,-500.0,0.00013972,2]
[346463276,1734985855443,-1441.07,0.00013972,2]
[346463277,1734985855453,-500.0,0.00013972,2]
[346463278,1734985855463,-834.32,0.00013972,2]
[346463279,1734985855473,-500.0,0.00013972,2]
[346463280,1734985855483,-2067.04,0.00013972,2]
[346463281,1734985855493,-500.0,0.00013972,2]
[346463282,1734985855503,-500.0,0.00013972,2]
[346463283,1734985855512,-500.0,0.00013972,2]
[346463284,1734985855521,-1595.56,0.00013972,2]
[346463285,1734985855531,-1979.45,0.00013972,2]
[346463286,1734985855540,-500.0,0.00013972,2]
[346463287,1734985855550,-500.0,0.00013972,2]
[346463288,1734985855560,-500.0,0.00013972,2]
[346463289,1734985855570,-500.0,0.00013972,2]
[346463290,1734985855579,-500.0,0.00013972,2]
[346463291,1734985855588,-500.0,0.00013972,2]
[346463292,1734985855598,-500.0,0.00013972,2]
[346463293,1734985855607,-500.0,0.00013972,2]
[346463294,1734985855616,-500.0,0.00013972,2]
[346463295,1734985855626,-500.0,0.00013972,2]
[346463296,1734985855637,-714.16,0.00013972,2]
[346463297,1734985855646,-500.0,0.00013972,2]
[346463298,1734985855657,-676.4,0.00013972,2]
[346463299,1734985855669,-500.0,0.00013972,2]
[346463300,1734985855679,-1017.37,0.00013972,2]
[346463301,1734985855689,-1081.0,0.00013972,2]
[346463302,1734985855698,-1444.5,0.00013972,2]
[346463303,1734985855708,-897.59,0.00013972,2]
[346463304,1734985855718,-1906.68,0.00013972,2]
[346463305,1734985855727,-500.0,0.00013972,2]
[346463306,1734985855737,-500.0,0.00013972,2]
[346463307,1734985855746,-500.0,0.00013972,2]
[346463308,1734985855756,-1319.4,0.00013972,2]
[346463309,1734985855766,-498.90339646,0.00013972,2]
[346463310,1734985855775,-500.0,0.00013972,2]
[346463311,1734985855785,-500.0,0.00013972,2]
[346463312,1734985855795,-504.88572253,0.00013972,2]
[346463313,1734985855804,-848.05,0.00013972,2]
[346463314,1734985855813,-1198.61,0.00013972,2]
[346463315,1734985855822,-500.0,0.00013972,2]
[346463316,1734985855831,-500.0,0.00013972,2]
[346463317,1734985855840,-500.0,0.00013972,2]
[346463318,1734985855850,-1420.71,0.00013972,2]
[346463319,1734985855859,-500.0,0.00013972,2]
[346463320,1734985855869,-500.0,0.00013972,2]
[346463321,1734985855878,-2377.84,0.00013972,2]
[346463322,1734985855887,-500.0,0.00013972,2]
[346463323,1734985855896,-761.86,0.00013972,2]
[346463324,1734985855907,-726.6,0.00013972,2]
[346463325,1734985855917,-500.0,0.00013972,2]
[346463326,1734985855929,-500.0,0.00013972,2]
[346463327,1734985855939,-1295.68,0.00013972,2]
[346463328,1734985855948,-582.36,0.00013972,2]
[346463329,1734985855958,-500.0,0.00013972,2]
[346463330,1734985855968,-563.31,0.00013972,2]
[346463331,1734985855978,-2028.82,0.00013972,2]
[346463332,1734985855988,-2172.18,0.00013972,2]
[346463333,1734985855997,-500.0,0.00013972,2]
[346463334,1734985856006,-800.04,0.00013972,2]
[346463335,1734985856016,-426.44657201,0.00013972,2]
[346463336,1734985856025,-500.0,0.00013972,2]
[346463337,1734985856035,-500.0,0.00013972,2]
[346463338,1734985856044,-500.0,0.00013972,2]
[346463339,1734985856053,-589.03,0.00013972,2]
[346463340,1734985856063,-500.0,0.00013972,2]
[346463341,1734985856072,-1797.9,0.00013972,2]
[346463342,1734985856080,-500.0,0.00013972,2]
[346463343,1734985856090,-500.0,0.00013972,2]
[346463344,1734985856099,-2367.25,0.00013972,2]
[346463345,1734985856107,-500.0,0.00013972,2]
[346463346,1734985856117,-1636.79,0.00013972,2]
[346463347,1734985856126,-503.39076064,0.00013972,2]
[346463348,1734985856134,-1955.68,0.00013972,2]
[346463349,1734985856143,-816.2,0.00013972,2]
[346463350,1734985856153,-500.0,0.00013972,2]
[346463351,1734985856164,-500.0,0.00013972,2]
[346463352,1734985856174,-1984.61,0.00013972,2]
[346463353,1734985856183,-1377.44,0.00013972,2]
[346463354,1734985856193,-500.0,0.00013972,2]
[346463355,1734985856202,-500.0,0.00013972,2]
[346463356,1734985856211,-500.0,0.00013972,2]
[346463357,1734985856220,-500.0,0.00013972,2]
[346463358,1734985856230,-883.68,0.00013972,2]
[346463359,1734985856239,-500.0,0.00013972,2]
[346463360,1734985856248,-500.0,0.00013972,2]
[346463361,1734985856257,-500.0,0.00013972,2]
[346463362,1734985856267,-500.0,0.00013972,2]
[346463363,1734985856276,-1299.3,0.00013972,2]
[346463364,1734985856285,-500.0,0.00013972,2]
[346463365,1734985856295,-2383.46,0.00013972,2]
[346463366,1734985856304,-1084.61,0.00013972,2]
[346463367,1734985856313,-873.73,0.00013972,2]
[346463368,1734985856322,-500.0,0.00013972,2]
[346463369,1734985856332,-500.0,0.00013972,2]
[346463370,1734985856341,-500.0,0.00013972,2]
[346463371,1734985856351,-502.26515989,0.00013972,2]
[346463372,1734985856360,-500.0,0.00013972,2]
[346463373,1734985856369,-1037.13,0.00013972,2]
[346463374,1734985856378,-976.37,0.00013972,2]
[346463375,1734985856388,-324.56584885,0.00013972,2]
[346463376,1734985856397,-500.0,0.00013972,2]